fUSD/lending_fUSD_20260425
["ID","MTS","AMOUNT","RATE_DAILY","PERIOD"]
[421110471,1777062632992,-510.30657886,9.889e-05,2]
[421110473,1777062633002,-510.30657886,9.889e-05,2]
[421110475,1777062633011,-510.30657886,9.889e-05,2]
[421110476,1777062633021,-510.30657886,9.889e-05,2]
[421110477,1777062633031,-510.30657886,9.889e-05,2]
[421110478,1777062633041,-510.30657886,9.889e-05,2]
[421110479,1777062633055,-510.30657886,9.889e-05,2]
[421110480,1777062633065,-510.30657886,9.889e-05,2]
[421110481,1777062633075,-510.30657886,9.889e-05,2]
[421110482,1777062633086,-510.30657886,9.889e-05,2]
[421110483,1777062633096,-510.30657886,9.889e-05,2]
[421110484,1777062633107,-510.30657886,9.889e-05,2]
[421110485,1777062633117,-510.30657886,9.889e-05,2]
[421110486,1777062633126,-510.30657886,9.889e-05,2]
[421110487,1777062633136,-510.30657886,9.889e-05,2]
[421110488,1777062633146,-510.30657886,9.889e-05,2]
[421110489,1777062633156,-510.30657886,9.889e-05,2]
[421110490,1777062633166,-510.30657886,9.889e-05,2]
[421110491,1777062633176,-510.30657886,9.889e-05,2]
[421110492,1777062633186,-506.78722316,9.889e-05,2]
[421110493,1777062633195,-506.78722316,9.889e-05,2]
[421110494,1777062633205,-506.78722316,9.889e-05,2]
[421110495,1777062633215,-506.78722316,9.889e-05,2]
[421110496,1777062633224,-506.78722316,9.889e-05,2]
[421110497,1777062633234,-506.78722316,9.889e-05,2]
[421110498,1777062633244,-506.78722316,9.889e-05,2]
[421110499,1777062633255,-506.78722316,9.889e-05,2]
[421110500,1777062633265,-506.78722316,9.889e-05,2]
[421110501,1777062633278,-506.78722316,9.889e-05,2]
[421110502,1777062633288,-506.78722316,9.889e-05,2]
[421110503,1777062633299,-506.78722316,9.889e-05,2]
[421110504,1777062633310,-506.78722316,9.889e-05,2]
[421110505,1777062633319,-506.78722316,9.889e-05,2]
[421110506,1777062633329,-187.18156584,9.889e-05,2]
[421110507,1777062633370,-319.60565732,9.889e-05,2]
[421110508,1777062633381,-506.78722316,9.889e-05,2]
[421110509,1777062633392,-80.38968859,9.889e-05,2]
[421110510,1777062633404,-426.39753457,9.889e-05,2]
[421110511,1777062633415,-506.78722316,9.889e-05,2]
[421110512,1777062633425,-506.78722316,9.889e-05,2]
[421110513,1777062633435,-229.00370288,9.889e-05,2]
[421110514,1777062633515,-277.78352028,9.889e-05,2]
[421110515,1777062633526,-506.78722316,9.889e-05,2]
[421110516,1777062633536,-506.78722316,9.889e-05,2]
[421110517,1777062633546,-506.78722316,9.889e-05,2]
[421110518,1777062633556,-5.91809233,9.889e-05,2]
[421110519,1777062633570,-500.86913083,9.889e-05,2]
[421110520,1777062633580,-506.78722316,9.889e-05,2]
[421110521,1777062633590,-397.47868113,9.889e-05,2]
[421110522,1777062633603,-109.30854203,9.889e-05,2]
[421110523,1777062633614,-506.78722316,9.889e-05,2]
[421110524,1777062633624,-444.04820568,9.889e-05,2]
[421110525,1777062633636,-62.73901748,9.889e-05,2]
[421110526,1777062633647,-455.36899362,9.889e-05,2]
[421110527,1777062633656,-381.99693701,9.889e-05,2]
[421110534,1777062638400,-284.14433268,9.691e-05,2]
[421110535,1777062638563,-788.3533407,9.691e-05,2]
[421110536,1777062638573,-124.79028606,9.889e-05,2]
[421110537,1777062638583,-339.32358339,9.889e-05,2]
[421110538,1777062638592,-500.14612018,9.889e-05,2]
[421110539,1777062638602,-374.73688903,9.889e-05,2]
[421110540,1777062638611,-52608.36212753,9.89e-05,3]
[421110541,1777062638622,-14860.68728384,9.89e-05,3]
[421110542,1777062638670,-2551.37717264,9.89e-05,3]
[421110543,1777062638729,-356.04634993,9.89e-05,3]
[421110554,1777062640421,-414.751446,9.691e-05,2]
[421110555,1777062640479,-619.43742099,9.691e-05,2]
[421110556,1777062640488,-76962.56257906,9.89e-05,3]
[421110557,1777062640593,-266.0,9.691e-05,2]
[421110576,1777062643558,-27.99400756,7.353e-05,2]
[421110577,1777062643608,-221.78959244,7.353e-05,2]
[421110578,1777062643618,-739.4202714,9.691e-05,2]
[421110579,1777062643628,-1093.7430156,9.691e-05,2]
[421110580,1777062643637,-1139.97055207,9.691e-05,2]
[421110581,1777062643646,-28665.07656499,9.89e-05,3]
[421110590,1777062647158,-450.0,9.691e-05,2]
[421110591,1777062647178,-589.31263146,9.691e-05,2]
[421110592,1777062647187,-1014.89691935,9.691e-05,2]
[421110593,1777062647197,-35331.21338166,9.89e-05,3]
[421110596,1777063190034,480.21,7.551e-05,7]
[421110602,1777063375857,2713.18,7.551e-05,7]
[421110603,1777063679611,1085.27,7.551e-05,30]
[421110606,1777063831565,-3490.28961984,7.554e-05,2]
[421110607,1777063831589,-249.0,7.554e-05,2]
[421110608,1777063831609,-500.0,8.119e-05,2]
[421110609,1777063831627,-280.0,8.219e-05,2]
[421110610,1777063831644,-578.20924308,8.429e-05,2]
[421110611,1777063831662,-246.98625817,8.741e-05,2]
[421110612,1777063831678,-641.25432338,8.799e-05,2]
[421110613,1777063831694,-419.0,8.799e-05,2]
[421110614,1777063831711,-150.0,8.803e-05,2]
[421110615,1777063831727,-150.0,8.803e-05,2]
[421110616,1777063831744,-150.0,8.803e-05,2]
[421110617,1777063831761,-150.0,8.803e-05,2]
[421110618,1777063831780,-150.0,8.803e-05,2]
[421110619,1777063831796,-150.0,8.803e-05,2]
[421110620,1777063831814,-150.0,8.803e-05,2]
[421110621,1777063831831,-150.0,8.803e-05,2]
[421110622,1777063831847,-296.0,8.816e-05,2]
[421110623,1777063831862,-157.0,8.834e-05,2]
[421110626,1777063831878,-150.0,8.878e-05,2]
[421110628,1777063831893,-150.0,8.942e-05,2]
[421110631,1777063831908,-150.0,8.953e-05,2]
[421110635,1777063831923,-150.0,8.998e-05,2]
[421110638,1777063831938,-150.0,9.028e-05,2]
[421110641,1777063831953,-150.0,9.047e-05,2]
[421110643,1777063831967,-150.0,9.047e-05,2]
[421110646,1777063831984,-150.0,9.047e-05,2]
[421110648,1777063832001,-150.0,9.082e-05,2]
[421110649,1777063832017,-150.0,9.104e-05,2]
[421110650,1777063832033,-150.0,9.179e-05,2]
[421110651,1777063832049,-150.0,9.194e-05,2]
[421110652,1777063832065,-150.0,9.222e-05,2]
[421110653,1777063832082,-180.63,9.227e-05,2]
[421110654,1777063832097,-150.0,9.254e-05,2]
[421110655,1777063832113,-150.0,9.292e-05,2]
[421110656,1777063832129,-150.0,9.292e-05,2]
[421110657,1777063832145,-150.0,9.292e-05,2]
[421110658,1777063832160,-150.0,9.292e-05,2]
[421110659,1777063832174,-150.0,9.329e-05,2]
[421110660,1777063832188,-150.0,9.362e-05,2]
[421110661,1777063832206,-150.0,9.39e-05,2]
[421110662,1777063832221,-150.0,9.405e-05,2]
[421110663,1777063832236,-150.0,9.48e-05,2]
[421110664,1777063832250,-500.0,9.501e-05,2]
[421110665,1777063832266,-150.0,9.501e-05,2]
[421110666,1777063832280,-150.0,9.536e-05,2]
[421110667,1777063832294,-150.0,9.536e-05,2]
[421110668,1777063832308,-150.0,9.536e-05,2]
[421110669,1777063832323,-150.0,9.555e-05,2]
[421110670,1777063832337,-150.0,9.585e-05,2]
[421110671,1777063832351,-45142.3772,9.589e-05,2]
[421110672,1777063832366,-150.0,9.63e-05,2]
[421110673,1777063832380,-150.0,9.641e-05,2]
[421110674,1777063832395,-500.0,9.673e-05,2]
[421110675,1777063832409,-500.0,9.673e-05,2]
[421110676,1777063832422,-174.61919141,9.686e-05,2]
[421110677,1777063832437,-5000.0,9.689e-05,2]
[421110678,1777063832451,-5806.47780055,9.689e-05,2]
[421110679,1777063834568,-1757.15289945,9.689e-05,2]
[421110680,1777063834579,-2180.8311,9.689e-05,2]
[421110681,1777063834589,-2500.0,9.689e-05,2]
[421110682,1777063834598,-4223.88893031,9.691e-05,2]
[421110683,1777063834610,-730.41006969,9.691e-05,2]
[421110684,1777063834619,-391.805,9.691e-05,2]
[421110685,1777063834628,-1078.72629499,9.691e-05,2]
[421110686,1777063834638,-252.02,9.692e-05,2]
[421110687,1777063834647,-1037.68524274,9.692e-05,2]
[421110688,1777063834656,-1069.42230873,9.692e-05,2]
[421110689,1777063834665,-1024.76288278,9.692e-05,2]
[421110690,1777063834675,-1142.15838424,9.692e-05,2]
[421110691,1777063834684,-1119.91867035,9.692e-05,2]
[421110692,1777063834693,-1137.30167828,9.692e-05,2]
[421110693,1777063834702,-1087.4706191,9.692e-05,2]
[421110694,1777063834711,-1103.3454056,9.692e-05,2]
[421110695,1777063834720,-1007.80215569,9.692e-05,2]
[421110696,1777063834729,-1013.37188368,9.692e-05,2]
[421110697,1777063834738,-1087.4208527,9.692e-05,2]
[421110698,1777063834747,-1019.41868135,9.692e-05,2]
[421110699,1777063834757,-1106.0160347,9.692e-05,2]
[421110700,1777063834766,-1136.56043197,9.692e-05,2]
[421110701,1777063834775,-1149.09929639,9.692e-05,2]
[421110702,1777063834784,-65.84288857,9.692e-05,2]
[421110703,1777063834796,-982.99142949,9.692e-05,2]
[421110704,1777063834805,-517.36857051,9.692e-05,2]
[421110705,1777063834818,-540.42848532,9.692e-05,2]
[421110706,1777063834827,-214.50974479,9.692e-05,2]
[421110707,1777063834838,-881.64829748,9.692e-05,2]
[421110708,1777063834848,-1095.25419174,9.692e-05,2]
[421110709,1777063834857,-654.9979171,9.692e-05,2]
[421110710,1777063834869,-488.59998237,9.692e-05,2]
[421110711,1777063834879,-757.88001763,9.692e-05,2]
[421110722,1777063837643,-273.40685928,9.692e-05,2]
[421110723,1777063837653,-897.34952126,9.692e-05,2]
[421110724,1777063837697,-500.0,9.589e-05,2]
[421110725,1777063837707,-199.51350042,9.692e-05,2]
[421110726,1777063837716,-1017.49696675,9.692e-05,2]
[421110727,1777063837726,-1126.92429642,9.692e-05,2]
[421110728,1777063837736,-1133.99088604,9.692e-05,2]
[421110729,1777063837746,-1117.07122489,9.692e-05,2]
[421110730,1777063837755,-1884.25932865,9.692e-05,2]
[421110731,1777063837765,-299.99,9.692e-05,2]
[421110732,1777063837775,-24355.09,9.692e-05,2]
[421110733,1777063837785,-150.99,9.692e-05,2]
[421110734,1777063837795,-300.4,9.692e-05,2]
[421110735,1777063837805,-9999.99,9.692e-05,2]
[421110736,1777063837815,-1700.0,9.7e-05,3]
[421110737,1777063837824,-150.0,9.706e-05,2]
[421110738,1777063837834,-162.24500663,9.737e-05,2]
[421110739,1777063837843,-160.0,9.737e-05,2]
[421110740,1777063837853,-150.0,9.781e-05,2]
[421110741,1777063837863,-150.0,9.781e-05,2]
[421110742,1777063837873,-150.0,9.781e-05,2]
[421110743,1777063837883,-150.0,9.781e-05,2]
[421110744,1777063837892,-150.0,9.781e-05,2]
[421110745,1777063837902,-150.0,9.781e-05,2]
[421110746,1777063837912,-150.0,9.781e-05,2]
[421110747,1777063837921,-150.0,9.781e-05,2]
[421110748,1777063837931,-695.39793187,9.783e-05,2]
[421110749,1777063837940,-150.0,9.788e-05,2]
[421110750,1777063837950,-226.94914166,9.789e-05,5]
[421110751,1777063837963,-270.05085834,9.789e-05,5]
[421110752,1777063837973,-250.0,9.789e-05,2]
[421110753,1777063837983,-2007.08759166,9.789e-05,2]
[421110754,1777063837995,-1466.38808259,9.789e-05,2]
[421110760,1777063839702,-292.66401806,9.789e-05,2]
[421110761,1777063839755,-7721.94853633,9.789e-05,2]
[421110762,1777063839810,-2387.0,9.789e-05,2]
[421110763,1777063839822,-77623.60327703,9.789e-05,2]
[421110764,1777063840179,-781.06101906,9.789e-05,2]
[421110765,1777063840191,-674.66537723,9.789e-05,2]
[421110777,1777063842643,-2500.0,9.689e-05,2]
[421110778,1777063842652,-6580.52846166,9.789e-05,2]
[421110779,1777063842663,-1030.1308482,9.789e-05,2]
[421110780,1777063842674,-1772.92596407,9.789e-05,2]
[421110781,1777063842686,-4307.74967549,9.789e-05,2]
[421110782,1777063842749,-561.44039589,9.789e-05,2]
[421110783,1777063842762,-3891.20509694,9.789e-05,2]
[421110784,1777063842803,-4630.30734289,9.789e-05,2]
[421110785,1777063842816,-997.41786555,9.789e-05,2]
[421110786,1777063842829,-2343.68669856,9.789e-05,2]
[421110787,1777063842841,-3101.36321665,9.789e-05,2]
[421110788,1777063842858,-19663.83524271,9.789e-05,2]
[421110789,1777063842911,-743.33980056,9.789e-05,2]
[421110790,1777063842964,-764.86434579,9.789e-05,2]
[421110791,1777063843019,-229212.58096342,9.789e-05,2]
[421110793,1777063845599,-600.05977976,9.789e-05,2]
[421110794,1777063845653,-363.79868394,9.789e-05,2]
[421110795,1777063845709,-626.20540277,9.789e-05,2]
[421110796,1777063845722,-929.79883095,9.789e-05,2]
[421110797,1777063845736,-2430.59892602,9.789e-05,2]
[421110798,1777063845749,-1622.63198,9.789e-05,2]
[421110799,1777063845761,-845.0235,9.789e-05,2]
[421110800,1777063845772,-1614.468702,9.789e-05,2]
[421110801,1777063846028,-3478.7,9.789e-05,2]
[421110802,1777063846085,-13471.64648594,9.789e-05,2]
[421110803,1777063846143,-6106.53102283,9.789e-05,2]
[421110804,1777063846199,-2062.66591023,9.789e-05,2]
[421110805,1777063846211,-21631.70037449,9.789e-05,2]
[421110806,1777063846222,-17896.40586983,9.789e-05,2]
[421110807,1777063846234,-3466.0095172,9.789e-05,2]
[421110828,1777065031937,-280.0,8.219e-05,2]
[421110829,1777065031948,-150.0,8.599e-05,2]
[421110830,1777065031958,-1200.0,8.599e-05,2]
[421110831,1777065031967,-24165.283639,8.6e-05,2]
[421110832,1777065031979,-317.81348446,8.6e-05,2]
[421110833,1777065031997,-478.50807902,8.6e-05,2]
[421110840,1777065032171,-603.84235597,8.6e-05,2]
[421110842,1777065032182,-1263.98453803,8.6e-05,2]
[421110844,1777065032194,-2904.35245575,8.6e-05,2]
[421110846,1777065032789,-6226.43661,8.6e-05,2]
[421110847,1777065032801,-37696.16728377,8.6e-05,2]
[421110848,1777065032906,-19689.57241436,8.6e-05,2]
[421110849,1777065033060,-351.5299975,8.6e-05,2]
[421110850,1777065033071,-440.0,8.6e-05,2]
[421110851,1777065033083,-613.67207983,8.6e-05,2]
[421110853,1777065037966,-500.14612018,8.599e-05,2]
[421110854,1777065037975,-500.0,8.599e-05,2]
[421110855,1777065037985,-500.0,8.599e-05,2]
[421110856,1777065037995,-339.32358339,8.599e-05,2]
[421110857,1777065038005,-500.0,8.599e-05,2]
[421110858,1777065038015,-500.0,8.599e-05,2]
[421110859,1777065038025,-500.0,8.599e-05,2]
[421110860,1777065038034,-500.0,8.599e-05,2]
[421110861,1777065038044,-214.17679047,8.599e-05,2]
[421110862,1777065038054,-500.0,8.599e-05,2]
[421110863,1777065038064,-500.0,8.599e-05,2]
[421110864,1777065038074,-500.0,8.599e-05,2]
[421110865,1777065038084,-500.0,8.599e-05,2]
[421110866,1777065038094,-550.00000001,8.599e-05,2]
[421110867,1777065038103,-500.0,8.599e-05,2]
[421110868,1777065038114,-500.0,8.599e-05,2]
[421110869,1777065038125,-500.0,8.599e-05,2]
[421110870,1777065038135,-500.0,8.599e-05,2]
[421110871,1777065038147,-500.0,8.599e-05,2]
[421110872,1777065038157,-500.0,8.599e-05,2]
[421110873,1777065038170,-500.0,8.599e-05,2]
[421110874,1777065038180,-500.0,8.599e-05,2]
[421110875,1777065038189,-500.0,8.599e-05,2]
[421110876,1777065038199,-500.0,8.599e-05,2]
[421110877,1777065038209,-500.0,8.599e-05,2]
[421110878,1777065038219,-500.0,8.599e-05,2]
[421110879,1777065038229,-500.0,8.599e-05,2]
[421110880,1777065038238,-500.0,8.599e-05,2]
[421110881,1777065038248,-500.0,8.599e-05,2]
[421110882,1777065038259,-649.20145134,8.599e-05,2]
[421110883,1777065038268,-500.0,8.599e-05,2]
[421110884,1777065038278,-500.0,8.599e-05,2]
[421110885,1777065038288,-500.0,8.599e-05,2]
[421110886,1777065038298,-500.0,8.599e-05,2]
[421110887,1777065038307,-500.0,8.599e-05,2]
[421110888,1777065038317,-500.0,8.599e-05,2]
[421110889,1777065038328,-500.0,8.599e-05,2]
[421110890,1777065038337,-500.0,8.599e-05,2]
[421110891,1777065038347,-500.0,8.599e-05,2]
[421110892,1777065038357,-1702.99004735,8.6e-05,2]
[421110893,1777065038369,-49260.64480807,8.6e-05,2]
[421110894,1777065038381,-14860.68728384,8.6e-05,2]
[421110895,1777065038397,-2098.95,8.6e-05,2]
[421110896,1777065038420,-4810.94195086,8.6e-05,2]
[421110897,1777065038432,-4934.206548,8.6e-05,2]
[421110898,1777065038448,-796.55986639,8.6e-05,2]
[421110899,1777065038461,-3596.22805072,8.6e-05,2]
[421110900,1777065038473,-1513.16049576,8.6e-05,2]
[421110902,1777065038484,-9346.62959513,8.6e-05,2]
[421110906,1777065039921,-1121.19194114,8.6e-05,2]
[421110907,1777065039932,-390.204,8.6e-05,2]
[421110908,1777065040236,-152114.38515578,8.6e-05,2]
[421110909,1777065040250,-16337.6022456,8.6e-05,2]
[421110910,1777065040264,-630.61347367,8.6e-05,2]
[421110911,1777065040275,-505.35220164,8.63e-05,2]
[421110912,1777065040291,-239.44399175,8.63e-05,2]
[421110913,1777065040300,-150.0,8.63e-05,2]
[421110914,1777065040309,-152.3426254,8.63e-05,2]
[421110915,1777065040319,-150.0,8.63e-05,2]
[421110916,1777065040329,-166.6255525,8.63e-05,2]
[421110917,1777065040338,-150.0,8.63e-05,2]
[421110918,1777065040348,-150.0,8.63e-05,2]
[421110919,1777065040359,-150.0,8.63e-05,2]
[421110920,1777065040379,-150.0,8.63e-05,2]
[421110921,1777065040391,-150.0,8.63e-05,2]
[421110922,1777065040401,-150.0,8.63e-05,2]
[421110923,1777065040413,-150.0,8.63e-05,2]
[421110924,1777065040424,-250.0,8.674e-05,2]
[421110925,1777065040435,-158.49472002,8.7e-05,2]
[421110926,1777065040449,-14828.65999578,8.7e-05,2]
[421110928,1777065040461,-475.80353924,8.7e-05,2]
[421110930,1777065040474,-651.98732006,8.7e-05,2]
[421110932,1777065040486,-1012.13922078,8.7e-05,2]
[421110936,1777065040511,-504.28224,8.7e-05,2]
[421110938,1777065040523,-1819.1209591,8.7e-05,2]
[421110941,1777065040535,-29553.99289593,8.7e-05,2]
[421110943,1777065040545,-578.20924308,8.712e-05,2]
[421110945,1777065040554,-174.61919141,8.712e-05,2]
[421110946,1777065040564,-150.0,8.75e-05,2]
[421110948,1777065040574,-744.79619339,8.836e-05,2]
[421110950,1777065040583,-150.0,8.87e-05,2]
[421110952,1777065040593,-150.0,8.99e-05,2]
[421110954,1777065040603,-744.79619339,9.041e-05,2]
[421110956,1777065040613,-193.0,9.041e-05,2]
[421110957,1777065040623,-150.0,9.11e-05,2]
[421110958,1777065040633,-150.0,9.229e-05,2]
[421110959,1777065040643,-181.08010149,9.26e-05,2]
[421110960,1777065040652,-150.0,9.349e-05,2]
[421110961,1777065040662,-167.67675259,9.386e-05,2]
[421110962,1777065040671,-521.29687099,9.386e-05,2]
[421110963,1777065040680,-500.0,9.386e-05,2]
[421110964,1777065040691,-500.0,9.386e-05,2]
[421110965,1777065040700,-500.0,9.386e-05,2]
[421110966,1777065040710,-620.09600333,9.386e-05,2]
[421110967,1777065040720,-500.0,9.386e-05,2]
[421110968,1777065040730,-500.0,9.386e-05,2]
[421110969,1777065040740,-500.0,9.386e-05,2]
[421110970,1777065040750,-500.0,9.386e-05,2]
[421110971,1777065040759,-364.88151485,9.386e-05,2]
[421110972,1777065040775,-500.0,9.386e-05,2]
[421110973,1777065040784,-500.0,9.386e-05,2]
[421110974,1777065040794,-500.0,9.387e-05,2]
[421110975,1777065040805,-250.0,9.387e-05,2]
[421110976,1777065040815,-43237.37865155,9.388e-05,2]
[421110977,1777065040829,-972.98655423,9.388e-05,2]
[421110978,1777065040842,-36884.8876836,9.388e-05,2]
[421110999,1777065042936,-7470.12199394,9.388e-05,2]
[421111000,1777065042949,-341.04,9.388e-05,2]
[421111001,1777065042962,-13279.93806439,9.388e-05,2]
[421111002,1777065042985,-4051.58577808,9.388e-05,2]
[421111003,1777065043002,-377.41491018,9.388e-05,2]
[421111004,1777065043050,-5700.45216036,9.388e-05,2]
[421111005,1777065043062,-1393.35230476,9.388e-05,2]
[421111006,1777065043074,-500.0,9.388e-05,2]
[421111009,1777065046035,-65000.0,9.388e-05,2]
[421111010,1777065046048,-84682.12160526,9.388e-05,2]
[421111011,1777065046109,-109997.07946358,9.388e-05,2]
[421111012,1777065046121,-494.61771879,9.388e-05,2]
[421111013,1777065046158,-39101.34391089,9.388e-05,2]
[421111014,1777065046266,-21762.28695369,9.388e-05,2]
[421111015,1777065046287,-10787.43076535,9.388e-05,2]
[421111016,1777065046302,-11909.45718096,9.388e-05,2]
[421111017,1777065046320,-651.98542784,9.388e-05,2]
[421111018,1777065046331,-4534.85779296,9.388e-05,2]
[421111050,1777066233096,-153.78348964,7.718e-05,2]
[421111051,1777066233107,-150.0,7.718e-05,2]
[421111052,1777066233116,-39.53974354,7.718e-05,2]
[421111053,1777066233157,-112.16487207,7.718e-05,2]
[421111054,1777066233167,-150.0,7.718e-05,2]
[421111055,1777066233177,-25.05921421,7.718e-05,2]
[421111056,1777066233201,-124.94078579,7.718e-05,2]
[421111057,1777066233211,-150.0,7.718e-05,2]
[421111058,1777066233221,-150.0,7.718e-05,2]
[421111059,1777066233230,-150.0,7.718e-05,2]
[421111060,1777066233240,-185.59309234,7.736e-05,2]
[421111068,1777066238175,-64.40690766,7.736e-05,2]
[421111070,1777066238184,-150.0,7.755e-05,2]
[421111071,1777066238194,-151.90838934,7.784e-05,2]
[421111081,1777066239566,-98.09161066,7.784e-05,2]
[421111082,1777066239576,-150.0,7.792e-05,2]
[421111083,1777066239585,-300.0,7.826e-05,2]
[421111084,1777066239594,-150.0,7.83e-05,2]
[421111085,1777066239604,-41.9263279,7.867e-05,2]
[421111104,1777066240701,-108.0736721,7.867e-05,2]
[421111105,1777066240711,-150.0,7.904e-05,2]
[421111106,1777066240720,-150.0,7.942e-05,2]
[421111107,1777066240729,-150.0,7.979e-05,2]
[421111108,1777066240739,-150.0,8.016e-05,2]
[421111109,1777066240748,-150.0,8.053e-05,2]
[421111110,1777066240757,-150.0,8.091e-05,2]
[421111111,1777066240767,-233.08364032,8.096e-05,2]
[421111112,1777066240776,-292.0,8.096e-05,2]
[421111113,1777066240785,-150.0,8.128e-05,2]
[421111114,1777066240794,-150.0,8.147e-05,2]
[421111115,1777066240804,-150.0,8.147e-05,2]
[421111116,1777066240813,-150.0,8.147e-05,2]
[421111117,1777066240823,-150.0,8.165e-05,2]
[421111118,1777066240832,-1410.51449893,8.178e-05,2]
[421111119,1777066240851,-4241.88162107,8.178e-05,2]
[421111120,1777066240860,-150.0,8.203e-05,2]
[421111121,1777066240870,-280.0,8.219e-05,2]
[421111122,1777066240879,-150.0,8.24e-05,2]
[421111123,1777066240888,-150.0,8.277e-05,2]
[421111124,1777066240899,-150.0,8.314e-05,2]
[421111125,1777066240908,-150.0,8.352e-05,2]
[421111126,1777066240918,-150.0,8.389e-05,2]
[421111128,1777066240927,-150.0,8.389e-05,2]
[421111129,1777066240936,-150.0,8.426e-05,2]
[421111130,1777066240945,-4426.031,8.428e-05,2]
[421111131,1777066240955,-348.952,8.428e-05,2]
[421111132,1777066240964,-150.0,8.463e-05,2]
[421111133,1777066240974,-250.0,8.49e-05,2]
[421111135,1777066240984,-150.0,8.501e-05,2]
[421111136,1777066240993,-150.0,8.538e-05,2]
[421111137,1777066241002,-278.83248566,8.575e-05,2]
[421111138,1777066241011,-203.18486512,8.575e-05,2]
[421111139,1777066241021,-164.82336035,8.575e-05,2]
[421111140,1777066241030,-227.48725332,8.575e-05,2]
[421111141,1777066241040,-262.64773087,8.575e-05,2]
[421111142,1777066241049,-282.12945498,8.575e-05,2]
[421111143,1777066241059,-500.0,8.599e-05,2]
[421111144,1777066241068,-168.02,8.599e-05,2]
[421111145,1777066241078,-250.0,8.599e-05,2]
[421111146,1777066241087,-420.0,8.609e-05,2]
[421111147,1777066241096,-5171.03197447,8.61e-05,2]
[421111148,1777066241105,-168.02,8.873e-05,2]
[421111149,1777066241115,-174.61919141,8.887e-05,2]
[421111150,1777066241124,-4200.0,8.9e-05,3]
[421111151,1777066241134,-8400.0,9e-05,3]
[421111152,1777066241143,-168.02,9.147e-05,2]
[421111153,1777066241152,-1557.12,9.342e-05,2]
[421111154,1777066241162,-500.0,9.388e-05,2]
[421111155,1777066241172,-152.0,9.39e-05,7]
[421111156,1777066241181,-1228.69906275,9.4e-05,2]
[421111157,1777066241193,-49.38093725,9.4e-05,2]
[421111158,1777066241203,-319.52,9.4e-05,2]
[421111159,1777066241212,-319.52,9.4e-05,2]
[421111160,1777066241222,-319.52,9.4e-05,2]
[421111161,1777066241231,-319.16,9.4e-05,2]
[421111162,1777066241240,-183.36,9.403e-05,2]
[421111163,1777066241250,-152.0,9.404e-05,7]
[421111164,1777066241259,-152.0,9.404e-05,7]
[421111165,1777066241269,-568.09,9.411e-05,2]
[421111166,1777066241278,-152.0,9.414e-05,7]
[421111167,1777066241287,-152.0,9.414e-05,7]
[421111168,1777066241297,-152.0,9.414e-05,7]
[421111169,1777066241306,-570.49,9.419e-05,2]
[421111170,1777066241316,-152.0,9.431e-05,7]
[421111171,1777066241327,-152.0,9.431e-05,7]
[421111172,1777066241336,-181.08010149,9.435e-05,2]
[421111173,1777066241346,-152.0,9.44e-05,7]
[421111174,1777066241356,-152.0,9.44e-05,7]
[421111175,1777066241365,-152.0,9.44e-05,7]
[421111176,1777066241374,-587.0,9.469e-05,2]
[421111177,1777066241383,-152.0,9.48e-05,7]
[421111178,1777066241393,-152.0,9.49e-05,7]
[421111179,1777066241402,-884.23,9.562e-05,2]
[421111180,1777066241411,-1415.0,9.589e-05,5]
[421111181,1777066241421,-150.0,9.589e-05,2]
[421111182,1777066241430,-1137.0,9.622e-05,5]
[421111183,1777066241440,-1107.0,9.622e-05,5]
[421111184,1777066241448,-162.24500663,9.668e-05,2]
[421111185,1777066241458,-160.0,9.668e-05,2]
[421111186,1777066241467,-299.99,9.67e-05,2]
[421111187,1777066241476,-156212.95,9.67e-05,2]
[421111188,1777066241485,-9999.99,9.67e-05,2]
[421111189,1777066241494,-999.99,9.67e-05,2]
[421111190,1777066241504,-6631.55,9.67e-05,2]
[421111191,1777066241513,-326.09631732,9.752e-05,2]
[421111192,1777066241522,-500.0,9.752e-05,2]
[421111193,1777066241532,-500.0,9.752e-05,2]
[421111194,1777066241541,-500.0,9.752e-05,2]
[421111195,1777066241550,-500.0,9.752e-05,2]
[421111196,1777066241559,-500.0,9.752e-05,2]
[421111197,1777066241569,-500.0,9.752e-05,2]
[421111198,1777066241578,-500.0,9.752e-05,2]
[421111199,1777066241587,-500.0,9.752e-05,2]
[421111200,1777066241597,-500.0,9.752e-05,2]
[421111201,1777066241607,-500.0,9.752e-05,2]
[421111202,1777066241617,-500.0,9.752e-05,2]
[421111203,1777066241626,-278.13912051,9.752e-05,2]
[421111221,1777066243243,-221.86087949,9.752e-05,2]
[421111222,1777066243253,-500.0,9.752e-05,2]
[421111223,1777066243262,-500.0,9.752e-05,2]